fUSD/lending_fUSD_20241221
["ID","MTS","AMOUNT","RATE_DAILY","PERIOD"]
[346178088,1734765079080,-500.0,0.00021643,2]
[346178089,1734765079090,-659.53,0.00021643,2]
[346178090,1734765079104,-530.0,0.00021643,2]
[346178091,1734765079114,-567.63,0.00021643,2]
[346178092,1734765079124,-500.0,0.00021643,2]
[346178093,1734765079134,-591.24,0.00021643,2]
[346178094,1734765079144,-500.0,0.00021643,2]
[346178095,1734765079153,-652.96,0.00021643,2]
[346178096,1734765079163,-500.0,0.00021643,2]
[346178097,1734765079172,-500.0,0.00021643,2]
[346178098,1734765079182,-500.0,0.00021643,2]
[346178099,1734765079192,-586.29,0.00021643,2]
[346178100,1734765079201,-500.0,0.00021643,2]
[346178101,1734765079211,-500.0,0.00021643,2]
[346178102,1734765079220,-500.0,0.00021643,2]
[346178103,1734765079229,-500.0,0.00021643,2]
[346178104,1734765079239,-479.33110831,0.00021643,2]
[346178105,1734765079250,-582.24454765,0.00021643,2]
[346178106,1734765079259,-500.0,0.00021643,2]
[346178107,1734765079269,-500.0,0.00021643,2]
[346178108,1734765079280,-500.0,0.00021643,2]
[346178109,1734765079290,-500.0,0.00021643,2]
[346178110,1734765079300,-500.0,0.00021643,2]
[346178111,1734765079310,-500.0,0.00021643,2]
[346178112,1734765079319,-500.0,0.00021643,2]
[346178113,1734765079328,-645.7,0.00021643,2]
[346178114,1734765079338,-500.0,0.00021643,2]
[346178115,1734765079347,-500.0,0.00021643,2]
[346178116,1734765079357,-500.0,0.00021643,2]
[346178117,1734765079366,-500.0,0.00021643,2]
[346178118,1734765079375,-500.0,0.00021643,2]
[346178119,1734765079385,-554.92,0.00021643,2]
[346178120,1734765079394,-1268.03,0.00021643,2]
[346178121,1734765079403,-540.99,0.00021643,2]
[346178122,1734765079414,-1370.66,0.00021643,2]
[346178123,1734765079424,-500.0,0.00021643,2]
[346178124,1734765079433,-500.0,0.00021643,2]
[346178125,1734765079443,-562.67,0.00021643,2]
[346178126,1734765079452,-850.99,0.00021643,2]
[346178127,1734765079462,-602.91,0.00021643,2]
[346178128,1734765079471,-2360.29,0.00021643,2]
[346178129,1734765079482,-665.96,0.00021643,2]
[346178130,1734765079492,-600.01,0.00021643,2]
[346178131,1734765079502,-500.0,0.00021643,2]
[346178132,1734765079513,-2294.49,0.00021643,2]
[346178133,1734765079524,-500.0,0.00021643,2]
[346178134,1734765079533,-829.63,0.00021643,2]
[346178135,1734765079542,-260.46308666,0.00021643,2]
[346178136,1734765079551,-613.95,0.00021643,2]
[346178137,1734765079562,-1224.85,0.00021643,2]
[346178138,1734765079571,-956.64,0.00021643,2]
[346178139,1734765079584,-500.0,0.00021643,2]
[346178140,1734765079593,-1849.46,0.00021643,2]
[346178141,1734765079603,-989.46,0.00021643,2]
[346178142,1734765079612,-500.0,0.00021643,2]
[346178143,1734765079622,-656.77,0.00021643,2]
[346178144,1734765079632,-645.88673624,0.00021643,2]
[346178145,1734765079642,-500.0,0.00021643,2]
[346178146,1734765079651,-574.74,0.00021643,2]
[346178147,1734765079660,-500.0,0.00021643,2]
[346178148,1734765079671,-516.88,0.00021643,2]
[346178149,1734765079680,-500.0,0.00021643,2]
[346178150,1734765079690,-696.16,0.00021643,2]
[346178151,1734765079699,-500.0,0.00021643,2]
[346178152,1734765079709,-500.0,0.00021643,2]
[346178153,1734765079718,-779.16,0.00021643,2]
[346178154,1734765079727,-664.07,0.00021643,2]
[346178155,1734765079736,-500.0,0.00021643,2]
[346178156,1734765079746,-754.41,0.00021643,2]
[346178157,1734765079755,-598.65,0.00021643,2]
[346178158,1734765079765,-537.46,0.00021643,2]
[346178159,1734765079775,-500.0,0.00021643,2]
[346178160,1734765079784,-1040.23,0.00021643,2]
[346178161,1734765079793,-550.54,0.00021643,2]
[346178162,1734765079802,-609.74,0.00021643,2]
[346178163,1734765079814,-1545.76,0.00021643,2]
[346178164,1734765079824,-2251.73,0.00021643,2]
[346178165,1734765079834,-500.0,0.00021643,2]
[346178166,1734765079844,-500.0,0.00021643,2]
[346178167,1734765079854,-667.89,0.00021643,2]
[346178168,1734765079863,-500.0,0.00021643,2]
[346178169,1734765079873,-858.31,0.00021643,2]
[346178170,1734765079883,-910.96,0.00021643,2]
[346178171,1734765079893,-525.83,0.00021643,2]
[346178172,1734765079903,-675.58,0.00021643,2]
[346178173,1734765079913,-1257.52,0.00021643,2]
[346178174,1734765079923,-277.74,0.00021643,2]
[346178175,1734765079933,-691.15,0.00021643,2]
[346178176,1734765079943,-588.56,0.00021643,2]
[346178177,1734765079952,-535.87,0.00021643,2]
[346178178,1734765079962,-1844.44,0.00021643,2]
[346178179,1734765079970,-1112.66,0.00021643,2]
[346178180,1734765079980,-500.0,0.00021643,2]
[346178181,1734765079989,-3778.3,0.00021643,2]
[346178182,1734765079999,-743.81,0.00021643,2]
[346178183,1734765080008,-763.06,0.00021643,2]
[346178184,1734765080018,-971.73,0.00021643,2]
[346178185,1734765080028,-2008.55,0.00021643,2]
[346178186,1734765080038,-695.31,0.00021643,2]
[346178187,1734765080048,-4156.22,0.00021643,2]
[346178188,1734765080062,-545.8,0.00021643,2]
[346178189,1734765080072,-500.0,0.00021643,2]
[346178190,1734765080084,-1066.88,0.00021643,2]
[346178191,1734765080094,-8814.31,0.00021643,2]
[346178192,1734765080103,-641.57,0.00021643,2]
[346178193,1734765080113,-500.0,0.00021643,2]
[346178194,1734765080122,-1201.21,0.00021643,2]
[346178195,1734765080132,-1027.94,0.00021643,2]
[346178196,1734765080141,-2074.99,0.00021643,2]
[346178197,1734765080151,-986.58,0.00021643,2]
[346178198,1734765080161,-832.32,0.00021643,2]
[346178199,1734765080171,-649.16,0.00021643,2]
[346178200,1734765080180,-892.74,0.00021643,2]
[346178201,1734765080189,-594.18,0.00021643,2]
[346178202,1734765080198,-1670.61,0.00021643,2]
[346178203,1734765080207,-679.53,0.00021643,2]
[346178204,1734765080217,-922.69,0.00021643,2]
[346178205,1734765080226,-850.92,0.00021643,2]
[346178206,1734765080235,-2604.91,0.00021643,2]
[346178207,1734765080245,-679.02,0.00021643,2]
[346178208,1734765080255,-639.51,0.00021643,2]
[346178209,1734765080266,-597.41,0.00021643,2]
[346178210,1734765080275,-539.08,0.00021643,2]
[346178211,1734765080285,-936.04,0.00021643,2]
[346178212,1734765080294,-500.0,0.00021643,2]
[346178213,1734765080304,-667.52,0.00021643,2]
[346178214,1734765080315,-1171.35,0.00021643,2]
[346178215,1734765080324,-500.0,0.00021643,2]
[346178216,1734765080334,-500.0,0.00021643,2]
[346178217,1734765080344,-693.7,0.00021643,2]
[346178218,1734765080354,-828.43,0.00021643,2]
[346178219,1734765080364,-572.81,0.00021643,2]
[346178220,1734765080374,-1349.96,0.00021643,2]
[346178221,1734765080383,-4988.53,0.00021643,2]
[346178222,1734765080393,-903.09,0.00021643,2]
[346178223,1734765080403,-880.44,0.00021643,2]
[346178224,1734765080413,-1611.49,0.00021643,2]
[346178225,1734765080423,-1506.45226281,0.00021644,2]
[346178226,1734765080432,-1172.19,0.0002166,2]
[346178227,1734765080442,-422.95,0.00021671,2]
[346178228,1734765080452,-150.0,0.00021697,2]
[346178229,1734765080462,-214.14,0.00021697,2]
[346178230,1734765080472,-150.0,0.00021697,2]
[346178231,1734765080482,-150.0,0.00021697,2]
[346178232,1734765080492,-150.0,0.00021697,2]
[346178233,1734765080502,-150.0,0.00021697,2]
[346178234,1734765080511,-150.0,0.00021697,2]
[346178235,1734765080520,-300.0,0.00021697,2]
[346178236,1734765080530,-365.07,0.00021697,2]
[346178237,1734765080540,-365.07,0.00021697,2]
[346178238,1734765080550,-559.83,0.00021697,2]
[346178239,1734765080561,-5000.0,0.000217,2]
[346178240,1734765080571,-700.0,0.0002171,2]
[346178241,1734765080584,-1500.0,0.00021734,2]
[346178242,1734765080594,-300.0,0.00021737,2]
[346178243,1734765080604,-406.46,0.00021737,2]
[346178244,1734765080615,-1506.45226281,0.00021753,2]
[346178245,1734765080626,-153.0,0.00021775,2]
[346178246,1734765080636,-153.0,0.00021775,2]
[346178247,1734765080645,-153.0,0.00021775,2]
[346178248,1734765080656,-153.0,0.00021775,2]
[346178249,1734765080666,-153.0,0.00021775,2]
[346178250,1734765080676,-153.0,0.00021775,2]
[346178251,1734765080687,-153.0,0.00021775,2]
[346178252,1734765080697,-153.0,0.00021775,2]
[346178253,1734765080707,-5000.0,0.000218,2]
[346178254,1734765080716,-5000.0,0.000218,2]
[346178255,1734765080726,-300.0,0.00021808,2]
[346178256,1734765080735,-1506.45226281,0.00021863,2]
[346178257,1734765080745,-153.0,0.00021911,2]
[346178258,1734765080755,-153.0,0.00021911,2]
[346178259,1734765080765,-153.0,0.00021911,2]
[346178260,1734765080776,-153.0,0.00021911,2]
[346178261,1734765080786,-153.0,0.00021911,2]
[346178262,1734765080796,-153.0,0.00021911,2]
[346178263,1734765080806,-153.0,0.00021911,2]
[346178264,1734765080815,-153.0,0.00021911,2]
[346178265,1734765080825,-153.0,0.00021911,2]
[346178266,1734765080835,-153.0,0.00021911,2]
[346178267,1734765080845,-153.0,0.00021911,2]
[346178268,1734765080855,-153.0,0.00021911,2]
[346178269,1734765080864,-153.0,0.00021911,2]
[346178270,1734765080874,-153.0,0.00021911,2]
[346178271,1734765080884,-500.0,0.00021914,2]
[346178272,1734765080895,-609.12,0.00021914,2]
[346178273,1734765080904,-731.44,0.00021914,2]
[346178274,1734765080914,-500.0,0.00021914,2]
[346178275,1734765080924,-500.0,0.00021914,2]
[346178276,1734765080934,-909.03,0.00021914,2]
[346178277,1734765080943,-1204.118159,0.00021914,2]
[346178278,1734765080953,-742.5,0.00021914,2]
[346178279,1734765080963,-810.145927,0.00021914,2]
[346178280,1734765080973,-534.19,0.00021914,2]
[346178281,1734765080983,-1459.91,0.00021914,2]
[346178282,1734765080993,-987.03,0.00021914,2]
[346178283,1734765081003,-1080.78,0.00021914,2]
[346178284,1734765081013,-167.353892,0.00021914,2]
[346178285,1734765081024,-907.79,0.00021914,2]
[346178286,1734765081035,-5648.75,0.00021914,2]
[346178287,1734765081045,-1707.55,0.00021914,2]
[346178288,1734765081057,-500.0,0.00021914,2]
[346178289,1734765081067,-555.06,0.00021914,2]
[346178290,1734765081077,-4690.0,0.00021914,2]
[346178291,1734765081087,-300.97,0.00021915,2]
[346178292,1734765081097,-500.0,0.00021915,2]
[346178293,1734765081107,-500.0,0.00021915,2]
[346178294,1734765081118,-500.0,0.00021915,2]
[346178295,1734765081128,-500.0,0.00021915,2]
[346178296,1734765081138,-500.0,0.00021915,2]
[346178297,1734765081148,-500.0,0.00021915,2]
[346178298,1734765081158,-500.0,0.00021915,2]
[346178299,1734765081168,-500.0,0.00021915,2]
[346178300,1734765081178,-500.0,0.00021915,2]
[346178301,1734765081188,-500.0,0.00021915,2]
[346178302,1734765081197,-500.0,0.00021915,2]
[346178303,1734765081207,-500.0,0.00021915,2]
[346178304,1734765081217,-500.0,0.00021915,2]
[346178305,1734765081226,-500.0,0.00021915,2]
[346178306,1734765081236,-500.0,0.00021915,2]
[346178307,1734765081246,-500.0,0.00021915,2]
[346178308,1734765081256,-500.0,0.00021915,2]
[346178309,1734765081266,-500.0,0.00021915,2]
[346178310,1734765081276,-500.0,0.00021915,2]
[346178311,1734765081286,-500.0,0.00021915,2]
[346178312,1734765081297,-500.0,0.00021915,2]
[346178313,1734765081308,-500.0,0.00021915,2]
[346178314,1734765081317,-500.0,0.00021915,2]
[346178315,1734765081327,-800.63,0.00021915,2]
[346178316,1734765081337,-500.0,0.00021915,2]
[346178317,1734765081347,-500.0,0.00021915,2]
[346178318,1734765081357,-500.0,0.00021915,2]
[346178319,1734765081367,-500.0,0.00021915,2]
[346178320,1734765081377,-557.93,0.00021915,2]
[346178321,1734765081388,-564.53,0.00021915,2]
[346178322,1734765081398,-1097.94,0.00021915,2]
[346178323,1734765081408,-1312.98,0.00021915,2]
[346178324,1734765081418,-713.67,0.00021915,2]
[346178325,1734765081429,-545.6,0.00021915,2]
[346178326,1734765081439,-617.61,0.00021915,2]
[346178327,1734765081449,-500.0,0.00021915,2]
[346178328,1734765081459,-1027.31,0.00021915,2]
[346178329,1734765081469,-781.83,0.00021915,2]
[346178330,1734765081478,-839.23,0.00021915,2]
[346178331,1734765081488,-529.71,0.00021915,2]
[346178332,1734765081498,-1178.66,0.00021915,2]
[346178333,1734765081507,-2429.01,0.00021915,2]
[346178334,1734765081518,-500.0,0.00021915,2]
[346178335,1734765081528,-946.11,0.00021915,2]
[346178336,1734765081538,-500.0,0.00021915,2]
[346178337,1734765081548,-2009.81,0.00021915,2]
[346178338,1734765081560,-832.29,0.00021915,2]
[346178339,1734765081570,-553.19,0.00021916,2]
[346178340,1734765081583,-540.6,0.00021916,2]
[346178341,1734765081594,-500.0,0.00021916,2]
[346178342,1734765081606,-589.08,0.00021916,2]
[346178343,1734765081617,-691.96,0.00021916,2]
[346178344,1734765081628,-572.24,0.00021916,2]
[346178345,1734765081638,-711.14,0.00021916,2]
[346178346,1734765081647,-842.2,0.00021916,2]
[346178347,1734765081658,-928.46,0.00021916,2]
[346178348,1734765081667,-500.0,0.00021916,2]
[346178349,1734765081677,-647.31,0.00021916,2]
[346178350,1734765081687,-921.84,0.00021916,2]
[346178351,1734765081697,-931.6,0.00021916,2]
[346178352,1734765081706,-679.34,0.00021916,2]
[346178353,1734765081716,-621.87,0.00021916,2]
[346178354,1734765081726,-707.66,0.00021916,2]
[346178355,1734765081736,-500.0,0.00021916,2]
[346178356,1734765081746,-1055.71,0.00021916,2]
[346178357,1734765081756,-812.57,0.00021916,2]
[346178358,1734765081765,-1167.67,0.00021916,2]
[346178359,1734765081776,-500.0,0.00021916,2]
[346178360,1734765081786,-505.48,0.00021916,2]
[346178361,1734765081795,-500.0,0.00021916,2]
[346178362,1734765081805,-500.0,0.00021916,2]
[346178363,1734765081815,-500.0,0.00021916,2]
[346178364,1734765081826,-803.44,0.00021916,2]
[346178365,1734765081835,-588.79,0.00021916,2]
[346178366,1734765081845,-500.0,0.00021916,2]
[346178367,1734765081855,-500.0,0.00021916,2]
[346178368,1734765081864,-520.04,0.00021917,2]
[346178369,1734765081874,-500.0,0.00021917,2]
[346178370,1734765081884,-500.0,0.00021917,2]
[346178371,1734765081894,-500.0,0.00021917,2]
[346178372,1734765081903,-500.0,0.00021917,2]
[346178373,1734765081913,-500.0,0.00021917,2]
[346178374,1734765081923,-500.0,0.00021917,2]
[346178375,1734765081932,-500.0,0.00021917,2]
[346178376,1734765081942,-500.0,0.00021917,2]
[346178377,1734765081951,-500.0,0.00021917,2]
[346178378,1734765081961,-500.0,0.00021917,2]
[346178379,1734765081970,-617.49,0.00021917,2]
[346178380,1734765081980,-500.0,0.00021917,2]
[346178381,1734765081989,-500.0,0.00021917,2]
[346178382,1734765081999,-500.0,0.00021917,2]
[346178383,1734765082009,-500.0,0.00021917,2]
[346178384,1734765082019,-614.48,0.00021917,2]
[346178385,1734765082028,-492.56593533,0.00021917,2]
[346178386,1734765082038,-500.0,0.00021917,2]
[346178387,1734765082048,-500.0,0.00021917,2]
[346178388,1734765082058,-500.0,0.00021917,2]
[346178389,1734765082068,-500.0,0.00021917,2]
[346178390,1734765082078,-500.0,0.00021917,2]
[346178391,1734765082088,-500.0,0.00021917,2]
[346178392,1734765082098,-500.0,0.00021917,2]
[346178393,1734765082108,-500.0,0.00021917,2]
[346178394,1734765082118,-569.52,0.00021917,2]
[346178395,1734765082128,-500.0,0.00021917,2]
[346178396,1734765082139,-500.0,0.00021917,2]
[346178397,1734765082149,-500.0,0.00021917,2]
[346178398,1734765082159,-500.0,0.00021917,2]
[346178399,1734765082169,-500.0,0.00021917,2]
[346178400,1734765082178,-521.59,0.00021917,2]
[346178401,1734765082188,-618.79,0.00021917,2]
[346178402,1734765082198,-500.0,0.00021917,2]
[346178403,1734765082208,-526.53,0.00021917,2]
[346178404,1734765082218,-500.0,0.00021917,2]
[346178405,1734765082227,-500.0,0.00021917,2]
[346178406,1734765082237,-500.0,0.00021917,2]
[346178407,1734765082248,-500.0,0.00021917,2]
[346178408,1734765082259,-609.6,0.00021917,2]
[346178409,1734765082268,-500.0,0.00021917,2]
[346178410,1734765082278,-528.4,0.00021917,2]
[346178411,1734765082287,-523.51,0.00021917,2]
[346178412,1734765082298,-500.0,0.00021917,2]
[346178413,1734765082309,-500.0,0.00021917,2]
[346178414,1734765082319,-500.0,0.00021917,2]
[346178415,1734765082329,-654.57,0.00021917,2]
[346178416,1734765082339,-500.0,0.00021917,2]
[346178417,1734765082348,-659.53,0.00021917,2]
[346178418,1734765082358,-530.0,0.00021917,2]
[346178419,1734765082368,-567.63,0.00021917,2]
[346178420,1734765082379,-500.0,0.00021917,2]
[346178421,1734765082388,-591.24,0.00021917,2]
[346178422,1734765082398,-500.0,0.00021917,2]
[346178423,1734765082409,-652.96,0.00021917,2]
[346178424,1734765082419,-500.0,0.00021917,2]
[346178425,1734765082612,-500.0,0.00021917,2]
[346178426,1734765082623,-305.61060105,0.00021917,2]
[346178427,1734765082632,-586.29,0.00021917,2]
[346178428,1734765082642,-500.0,0.00021917,2]
[346178429,1734765082652,-500.0,0.00021917,2]
[346178430,1734765082662,-497.86679359,0.00021917,2]
[346178431,1734765082673,-500.0,0.00021917,2]
[346178432,1734765082683,-500.0,0.00021917,2]
[346178433,1734765082692,-500.0,0.00021917,2]
[346178434,1734765082701,-500.0,0.00021917,2]
[346178435,1734765082710,-500.0,0.00021917,2]
[346178436,1734765082720,-500.0,0.00021917,2]
[346178437,1734765082730,-500.0,0.00021917,2]
[346178438,1734765082739,-500.0,0.00021917,2]
[346178439,1734765082748,-645.7,0.00021917,2]
[346178440,1734765082757,-500.0,0.00021917,2]
[346178441,1734765082767,-187.56747373,0.00021917,2]
[346178442,1734765082776,-500.0,0.00021917,2]
[346178443,1734765082786,-500.0,0.00021917,2]
[346178444,1734765082795,-500.0,0.00021917,2]
[346178445,1734765082804,-554.92,0.00021917,2]
[346178446,1734765082816,-1268.03,0.00021917,2]
[346178447,1734765082826,-540.99,0.00021917,2]
[346178448,1734765082835,-1370.66,0.00021917,2]
[346178449,1734765082846,-500.0,0.00021917,2]
[346178450,1734765082855,-500.0,0.00021917,2]
[346178451,1734765082864,-562.67,0.00021917,2]
[346178452,1734765082874,-850.99,0.00021917,2]
[346178453,1734765082883,-602.91,0.00021917,2]
[346178454,1734765082893,-2360.29,0.00021917,2]
[346178455,1734765082902,-665.96,0.00021917,2]
[346178456,1734765082911,-600.01,0.00021917,2]
[346178457,1734765082922,-500.0,0.00021917,2]
[346178458,1734765082931,-2294.49,0.00021917,2]
[346178459,1734765082940,-500.0,0.00021917,2]
[346178460,1734765082950,-3574.58,0.00021917,2]
[346178461,1734765082959,-3574.58,0.00021917,2]
[346178462,1734765082969,-3574.58,0.00021917,2]
[346178463,1734765082979,-3574.58,0.00021917,2]
[346178464,1734765082988,-3574.58,0.00021917,2]
[346178465,1734765082999,-3574.58,0.00021917,2]
[346178466,1734765083008,-3574.58,0.00021917,2]
[346178467,1734765083018,-3574.58,0.00021917,2]
[346178468,1734765083028,-3574.58,0.00021917,2]
[346178469,1734765083037,-829.63,0.00021917,2]
[346178470,1734765083046,-613.95,0.00021917,2]
[346178471,1734765083056,-1224.85,0.00021917,2]
[346178472,1734765083066,-956.64,0.00021917,2]
[346178473,1734765083076,-500.0,0.00021917,2]
[346178474,1734765083085,-500.0,0.00021917,2]
[346178475,1734765083094,-500.0,0.00021917,2]
[346178476,1734765083104,-500.0,0.00021917,2]
[346178477,1734765083113,-500.0,0.00021917,2]
[346178478,1734765083122,-509.09039375,0.00021917,2]
[346178479,1734765083131,-1849.46,0.00021917,2]
[346178480,1734765083141,-989.46,0.00021917,2]
[346178481,1734765083151,-500.0,0.00021917,2]
[346178482,1734765083159,-656.77,0.00021917,2]
[346178483,1734765083169,-500.0,0.00021917,2]
[346178484,1734765083179,-574.74,0.00021917,2]
[346178485,1734765083188,-500.0,0.00021917,2]
[346178486,1734765083198,-516.88,0.00021917,2]
[346178487,1734765083207,-500.0,0.00021917,2]
[346178488,1734765083217,-696.16,0.00021917,2]
[346178489,1734765083226,-500.0,0.00021917,2]
[346178490,1734765083235,-500.0,0.00021917,2]
[346178491,1734765083244,-779.16,0.00021917,2]
[346178492,1734765083254,-664.07,0.00021917,2]
[346178493,1734765083263,-610.51316913,0.00021917,2]
[346178494,1734765083272,-754.41,0.00021917,2]
[346178495,1734765083282,-598.65,0.00021917,2]
[346178496,1734765083291,-537.46,0.00021917,2]
[346178497,1734765083300,-500.0,0.00021917,2]
[346178498,1734765083312,-1040.23,0.00021917,2]
[346178499,1734765083321,-550.54,0.00021917,2]
[346178500,1734765083330,-1545.76,0.00021917,2]
[346178501,1734765083340,-609.74,0.00021917,2]
[346178502,1734765083349,-2251.73,0.00021917,2]
[346178503,1734765083358,-500.0,0.00021917,2]
[346178504,1734765083368,-500.0,0.00021917,2]
[346178505,1734765083377,-667.89,0.00021917,2]
[346178506,1734765083387,-500.0,0.00021917,2]
[346178507,1734765083396,-858.31,0.00021917,2]
[346178508,1734765083405,-910.96,0.00021917,2]
[346178509,1734765083416,-525.83,0.00021917,2]
[346178510,1734765083425,-675.58,0.00021917,2]
[346178511,1734765083435,-1257.52,0.00021917,2]
[346178512,1734765083446,-691.15,0.00021917,2]
[346178513,1734765083456,-588.56,0.00021917,2]
[346178514,1734765083466,-535.87,0.00021917,2]
[346178515,1734765083475,-1844.44,0.00021917,2]
[346178516,1734765083487,-1112.66,0.00021917,2]
[346178517,1734765083496,-500.0,0.00021917,2]
[346178518,1734765083505,-3778.3,0.00021917,2]
[346178519,1734765083515,-743.81,0.00021917,2]
[346178520,1734765083525,-763.06,0.00021917,2]
[346178521,1734765083535,-971.73,0.00021917,2]
[346178522,1734765083544,-2008.55,0.00021917,2]
[346178523,1734765083554,-695.31,0.00021917,2]
[346178524,1734765083564,-545.8,0.00021917,2]
[346178525,1734765083574,-4156.22,0.00021917,2]
[346178526,1734765083584,-500.0,0.00021917,2]
[346178527,1734765083594,-1066.88,0.00021917,2]
[346178528,1734765083607,-8814.31,0.00021917,2]
[346178529,1734765083617,-641.57,0.00021917,2]
[346178530,1734765083627,-500.0,0.00021917,2]
[346178531,1734765083636,-1201.21,0.00021917,2]
[346178532,1734765083647,-1027.94,0.00021917,2]
[346178533,1734765083658,-2074.99,0.00021917,2]
[346178534,1734765083666,-986.58,0.00021917,2]
[346178535,1734765083679,-832.32,0.00021917,2]
[346178536,1734765083690,-649.16,0.00021917,2]
[346178537,1734765083699,-892.74,0.00021917,2]
[346178538,1734765083708,-594.18,0.00021917,2]
[346178539,1734765083718,-1670.61,0.00021917,2]
[346178540,1734765083727,-679.53,0.00021917,2]
[346178541,1734765083737,-922.69,0.00021917,2]
[346178542,1734765083748,-850.92,0.00021917,2]
[346178543,1734765083757,-2604.91,0.00021917,2]
[346178544,1734765083767,-679.02,0.00021917,2]
[346178545,1734765083777,-639.51,0.00021917,2]
[346178546,1734765083787,-597.41,0.00021917,2]
[346178547,1734765083797,-539.08,0.00021917,2]
[346178548,1734765083806,-936.04,0.00021917,2]
[346178549,1734765083815,-500.0,0.00021917,2]
[346178550,1734765083824,-667.52,0.00021917,2]
[346178551,1734765083834,-1171.35,0.00021917,2]
[346178552,1734765083843,-500.0,0.00021917,2]
[346178553,1734765083853,-500.0,0.00021917,2]
[346178554,1734765083863,-693.7,0.00021917,2]
[346178555,1734765083871,-572.81,0.00021917,2]
[346178556,1734765083881,-828.43,0.00021917,2]
[346178557,1734765083891,-1349.96,0.00021917,2]
[346178558,1734765083900,-4988.53,0.00021917,2]
[346178559,1734765083910,-776.66,0.00021917,2]
[346178560,1734765083920,-776.66,0.00021917,2]
[346178561,1734765083930,-776.66,0.00021917,2]
[346178562,1734765083939,-776.66,0.00021917,2]
[346178563,1734765083949,-776.66,0.00021917,2]
[346178564,1734765083959,-903.09,0.00021917,2]
[346178565,1734765083968,-776.66,0.00021917,2]
[346178566,1734765083978,-880.44,0.00021917,2]
[346178567,1734765083988,-1611.49,0.00021917,2]
[346178568,1734765083998,-776.66,0.00021917,2]
[346178569,1734765084007,-1500.0,0.00021925,2]
[346178570,1734765084016,-1506.45226281,0.00021973,2]
[346178571,1734765084026,-350.0,0.00022,120]
[346178572,1734765084036,-394.0,0.00022,2]
[346178573,1734765084045,-1468.9277112,0.0002205,2]
[346178574,1734765084055,-1506.45226281,0.00022055,2]
[346178575,1734765084066,-769.47,0.00022082,2]
[346178576,1734765084083,-538.36945,0.00022088,7]
[346178577,1734765084093,-30000.00000099,0.00022128,3]
[346178578,1734765084103,-909104.70569802,0.00022163,2]
[346178579,1734765084113,-1506.45226281,0.00022164,2]
[346178580,1734765084122,-500.0,0.00022173,2]
[346178581,1734765084132,-500.0,0.00022173,2]
[346178582,1734765084141,-314.74090148,0.00022173,2]
[346178583,1734765084151,-185.74683461,0.00022173,2]
[346178584,1734765084160,-500.0,0.00022188,2]
[346178585,1734765084169,-609.12,0.00022188,2]
[346178586,1734765084179,-731.44,0.00022188,2]
[346178587,1734765084188,-500.0,0.00022188,2]